[Event "Early-Titled-Tuesday-Blitz-July-09-2024"]
[Site "Chess.com"]
[Date "2024.07.09"]
[Round "10"]
[White "Trendle"]
[Black "chess_peak"]
[Result "1-0"]
[WhiteElo "2679"]
[BlackElo "2555"]
[TimeControl "180+1"]
[EndTime "9:56:34 PDT"]
[Termination "Trendle won by resignation"]

1. f4 {[%clk 0:03:00.9]} 1... d5 {[%clk 0:02:56.5]} 2. Nf3 {[%clk 0:03:00.7]}
2... Nf6 {[%clk 0:02:55.1]} 3. g3 {[%clk 0:03:01]} 3... g6 {[%clk 0:02:49.2]} 4.
Bg2 {[%clk 0:03:01]} 4... Bg7 {[%clk 0:02:49.6]} 5. O-O {[%clk 0:03:01.2]} 5...
O-O {[%clk 0:02:49.7]} 6. d3 {[%clk 0:03:01.7]} 6... b6 {[%clk 0:02:35.7]} 7.
Nc3 {[%clk 0:02:56]} 7... Bb7 {[%clk 0:02:30]} 8. Ne5 {[%clk 0:02:56]} 8... Nbd7
{[%clk 0:02:15.4]} 9. e4 {[%clk 0:02:54.9]} 9... dxe4 {[%clk 0:02:10.9]} 10.
Nxd7 {[%clk 0:02:46.6]} 10... Qxd7 {[%clk 0:01:27.4]} 11. dxe4 {[%clk
0:02:46.2]} 11... Rad8 {[%clk 0:01:20.3]} 12. Qe2 {[%clk 0:02:43.3]} 12... Ne8
{[%clk 0:00:59.4]} 13. e5 {[%clk 0:02:22.7]} 13... Bxg2 {[%clk 0:00:58.3]} 14.
Qxg2 {[%clk 0:02:19]} 14... f6 {[%clk 0:00:50.3]} 15. Rd1 {[%clk 0:01:58.1]}
15... Qc8 {[%clk 0:00:29.3]} 16. Nd5 {[%clk 0:01:43.6]} 16... Qe6 {[%clk
0:00:29.5]} 17. Be3 {[%clk 0:01:39.1]} 17... fxe5 {[%clk 0:00:27.9]} 18. c3
{[%clk 0:01:23.8]} 18... exf4 {[%clk 0:00:23.4]} 19. Bxf4 {[%clk 0:01:21.5]}
19... Nf6 {[%clk 0:00:18.2]} 20. Nxc7 {[%clk 0:01:18.7]} 20... Qc4 {[%clk
0:00:15.3]} 21. Qf1 {[%clk 0:01:09.1]} 21... Qc5+ {[%clk 0:00:15]} 22. Kh1
{[%clk 0:00:59.9]} 22... Qc6+ {[%clk 0:00:15.1]} 23. Qg2 {[%clk 0:00:59.8]}
23... Ne4 {[%clk 0:00:15.1]} 24. Re1 {[%clk 0:00:52.1]} 24... Nf2+ {[%clk
0:00:11.2]} 25. Kg1 {[%clk 0:00:52.8]} 25... Qxg2+ {[%clk 0:00:11.6]} 26. Kxg2
{[%clk 0:00:53]} 26... Nd3 {[%clk 0:00:12.2]} 27. Rxe7 {[%clk 0:00:48.3]} 27...
Nxf4+ {[%clk 0:00:12.5]} 28. gxf4 {[%clk 0:00:49.1]} 28... Rd2+ {[%clk
0:00:11.9]} 29. Kf3 {[%clk 0:00:48.3]} 29... Rxb2 {[%clk 0:00:11.6]} 30. Ne6
{[%clk 0:00:48.3]} 30... Rf7 {[%clk 0:00:10]} 31. Re8+ {[%clk 0:00:47.3]} 31...
Bf8 {[%clk 0:00:10.5]} 32. Rd1 {[%clk 0:00:44.2]} 32... Rc2 {[%clk 0:00:04.3]}
33. Rdd8 {[%clk 0:00:40.3]} 33... Rxc3+ {[%clk 0:00:04.7]} 34. Kg4 {[%clk
0:00:34.9]} 34... h5+ {[%clk 0:00:04.8]} 35. Kg5 {[%clk 0:00:30.7]} 35... Kh7
{[%clk 0:00:02.6]} 36. Nxf8+ {[%clk 0:00:28.5]} 1-0

[Event "Early-Titled-Tuesday-Blitz-July-09-2024"]
[Site "Chess.com"]
[Date "2024.07.09"]
[Round "10"]
[White "NovakRatko"]
[Black "campochess"]
[Result "1-0"]
[WhiteElo "2359"]
[BlackElo "2238"]
[TimeControl "180+1"]
[EndTime "9:56:34 PDT"]
[Termination "NovakRatko won by resignation"]

1. d4 {[%clk 0:02:58.2]} 1... Nf6 {[%clk 0:02:19]} 2. c4 {[%clk 0:02:55.8]} 2...
g6 {[%clk 0:02:17.9]} 3. Nc3 {[%clk 0:02:55.5]} 3... d5 {[%clk 0:02:18]} 4. f3
{[%clk 0:02:55.4]} 4... dxc4 {[%clk 0:02:15.1]} 5. e4 {[%clk 0:02:55.6]} 5...
Bg7 {[%clk 0:02:14.7]} 6. Bxc4 {[%clk 0:02:55.4]} 6... c5 {[%clk 0:02:12]} 7. d5
{[%clk 0:02:49.6]} 7... Nfd7 {[%clk 0:02:10.9]} 8. f4 {[%clk 0:02:46.5]} 8... a6
{[%clk 0:02:10.5]} 9. a3 {[%clk 0:02:46.4]} 9... b5 {[%clk 0:02:10.1]} 10. Ba2
{[%clk 0:02:45.7]} 10... O-O {[%clk 0:02:09.5]} 11. Nf3 {[%clk 0:02:45.6]} 11...
Nf6 {[%clk 0:02:04.7]} 12. e5 {[%clk 0:02:43.2]} 12... Ng4 {[%clk 0:02:03.2]}
13. h3 {[%clk 0:02:41.7]} 13... Nh6 {[%clk 0:02:02.7]} 14. Be3 {[%clk
0:02:38.7]} 14... Nf5 {[%clk 0:02:00.5]} 15. Bxc5 {[%clk 0:02:10.9]} 15... Ng3
{[%clk 0:01:58]} 16. Rg1 {[%clk 0:02:10]} 16... Nd7 {[%clk 0:01:55.8]} 17. Bf2
{[%clk 0:02:09.9]} 17... Nf5 {[%clk 0:01:55.6]} 18. g4 {[%clk 0:02:10.4]} 18...
Nh6 {[%clk 0:01:55.3]} 19. Be3 {[%clk 0:02:05.3]} 19... Kh8 {[%clk 0:01:54.1]}
20. Qd2 {[%clk 0:02:05.1]} 20... Ng8 {[%clk 0:01:54.1]} 21. Kf2 {[%clk
0:02:04.7]} 21... Rb8 {[%clk 0:01:51.3]} 22. Ng5 {[%clk 0:02:03]} 22... b4
{[%clk 0:01:47.8]} 23. axb4 {[%clk 0:02:02.4]} 23... Rxb4 {[%clk 0:01:46.7]} 24.
e6 {[%clk 0:02:01]} 24... Ndf6 {[%clk 0:01:39.3]} 25. Nxf7+ {[%clk 0:01:56.4]}
25... Rxf7 {[%clk 0:01:39.3]} 26. exf7 {[%clk 0:01:56.5]} 26... Nh6 {[%clk
0:01:35]} 27. g5 {[%clk 0:01:49.8]} 27... Nf5 {[%clk 0:01:31.6]} 28. gxf6 {[%clk
0:01:49.2]} 28... Bxf6 {[%clk 0:01:31.7]} 29. Rad1 {[%clk 0:01:35.5]} 29... Nxe3
{[%clk 0:01:27]} 30. Kxe3 {[%clk 0:01:33.8]} 30... Qb6+ {[%clk 0:01:23.3]} 31.
Kf3 {[%clk 0:01:27.1]} 31... Kg7 {[%clk 0:01:20.3]} 32. d6 {[%clk 0:01:24.8]}
32... exd6 {[%clk 0:01:07.2]} 33. Qxd6 {[%clk 0:01:21.8]} 33... Bb7+ {[%clk
0:01:06.5]} 34. Nd5 {[%clk 0:01:04.2]} 34... Qd8 {[%clk 0:00:27.5]} 35. Qxd8
{[%clk 0:00:56.8]} 35... Bxd8 {[%clk 0:00:26.2]} 36. Rd2 {[%clk 0:00:42.2]}
36... Kxf7 {[%clk 0:00:21.8]} 37. Ke2 {[%clk 0:00:39.6]} 37... Re4+ {[%clk
0:00:20.1]} 38. Kd3 {[%clk 0:00:37.3]} 38... Re8 {[%clk 0:00:11.3]} 39. Nc7+
{[%clk 0:00:36.9]} 39... Kf8 {[%clk 0:00:11.3]} 40. Nxe8 {[%clk 0:00:37.3]}
40... Kxe8 {[%clk 0:00:10.7]} 41. Re1+ {[%clk 0:00:37.8]} 1-0

[Event "Early-Titled-Tuesday-Blitz-July-09-2024"]
[Site "Chess.com"]
[Date "2024.07.09"]
[Round "10"]
[White "NowInChess"]
[Black "Senn71"]
[Result "0-1"]
[WhiteElo "2211"]
[BlackElo "2370"]
[TimeControl "180+1"]
[EndTime "9:56:36 PDT"]
[Termination "Senn71 won on time"]

1. e4 {[%clk 0:03:00.9]} 1... c5 {[%clk 0:02:59.5]} 2. d3 {[%clk 0:03:00.7]}
2... g6 {[%clk 0:02:56.1]} 3. g3 {[%clk 0:03:00.8]} 3... Bg7 {[%clk 0:02:55]} 4.
Bg2 {[%clk 0:03:00.6]} 4... Nc6 {[%clk 0:02:55.7]} 5. f4 {[%clk 0:03:00.8]} 5...
d6 {[%clk 0:02:52.3]} 6. Nf3 {[%clk 0:03:00.9]} 6... e6 {[%clk 0:02:52.1]} 7.
O-O {[%clk 0:03:00.8]} 7... Nge7 {[%clk 0:02:52.7]} 8. c3 {[%clk 0:03:00.8]}
8... O-O {[%clk 0:02:53]} 9. Be3 {[%clk 0:03:01.2]} 9... Rb8 {[%clk 0:02:37.5]}
10. d4 {[%clk 0:03:00.4]} 10... d5 {[%clk 0:02:33.1]} 11. e5 {[%clk 0:02:32.6]}
11... cxd4 {[%clk 0:02:29]} 12. cxd4 {[%clk 0:02:33.3]} 12... b6 {[%clk
0:02:25.5]} 13. Nc3 {[%clk 0:02:30]} 13... Ba6 {[%clk 0:02:21.8]} 14. Re1 {[%clk
0:02:29.9]} 14... Qd7 {[%clk 0:01:54.8]} 15. Rc1 {[%clk 0:02:24.2]} 15... Rfc8
{[%clk 0:01:49.3]} 16. Qd2 {[%clk 0:02:03.7]} 16... Na5 {[%clk 0:01:28.6]} 17.
b3 {[%clk 0:02:03.1]} 17... Nec6 {[%clk 0:01:23.3]} 18. g4 {[%clk 0:01:52.7]}
18... Nb4 {[%clk 0:01:22.5]} 19. Bf1 {[%clk 0:01:47.1]} 19... Bxf1 {[%clk
0:01:20.1]} 20. Rxf1 {[%clk 0:01:47.7]} 20... Rc7 {[%clk 0:01:12.6]} 21. f5
{[%clk 0:01:32.2]} 21... exf5 {[%clk 0:01:11.5]} 22. Ng5 {[%clk 0:00:55]} 22...
h6 {[%clk 0:00:55.6]} 23. e6 {[%clk 0:00:41]} 23... fxe6 {[%clk 0:00:52.2]} 24.
Nf3 {[%clk 0:00:39.7]} 24... fxg4 {[%clk 0:00:47.3]} 25. Ne5 {[%clk 0:00:39]}
25... Bxe5 {[%clk 0:00:46.2]} 26. dxe5 {[%clk 0:00:39.9]} 26... d4 {[%clk
0:00:26.8]} 27. Qxd4 {[%clk 0:00:15.8]} 27... Qxd4 {[%clk 0:00:26.1]} 28. Bxd4
{[%clk 0:00:16.7]} 28... Nac6 {[%clk 0:00:21.4]} 29. Nb5 {[%clk 0:00:11.3]}
29... Rcc8 {[%clk 0:00:17.6]} 30. Nd6 {[%clk 0:00:04.6]} 30... Rf8 {[%clk
0:00:15]} 0-1

[Event "Early-Titled-Tuesday-Blitz-July-09-2024"]
[Site "Chess.com"]
[Date "2024.07.09"]
[Round "10"]
[White "SVijayalakshmi"]
[Black "Cheer_Down"]
[Result "0-1"]
[WhiteElo "2528"]
[BlackElo "2439"]
[TimeControl "180+1"]
[EndTime "9:56:38 PDT"]
[Termination "Cheer_Down won on time"]

1. d4 {[%clk 0:03:00.9]} 1... d5 {[%clk 0:02:59.8]} 2. c4 {[%clk 0:03:01.2]}
2... e6 {[%clk 0:03:00.1]} 3. Nc3 {[%clk 0:03:01.4]} 3... Nf6 {[%clk 0:03:00.4]}
4. cxd5 {[%clk 0:03:01.7]} 4... exd5 {[%clk 0:02:59.3]} 5. Bg5 {[%clk
0:03:02.2]} 5... Bb4 {[%clk 0:02:58.8]} 6. Nf3 {[%clk 0:03:01.5]} 6... Nbd7
{[%clk 0:02:54.1]} 7. e3 {[%clk 0:03:01.2]} 7... c5 {[%clk 0:02:54.2]} 8. dxc5
{[%clk 0:03:00.8]} 8... Qa5 {[%clk 0:02:51.1]} 9. Bd3 {[%clk 0:02:51]} 9...
Bxc3+ {[%clk 0:02:36]} 10. bxc3 {[%clk 0:02:50.6]} 10... Qxc3+ {[%clk
0:02:36.6]} 11. Ke2 {[%clk 0:02:50.6]} 11... Nxc5 {[%clk 0:02:34.3]} 12. Bb5+
{[%clk 0:02:31.2]} 12... Bd7 {[%clk 0:02:34.5]} 13. Bxd7+ {[%clk 0:02:23.9]}
13... Nfxd7 {[%clk 0:02:34.8]} 14. Qxd5 {[%clk 0:02:10.3]} 14... Qb2+ {[%clk
0:02:08.8]} 15. Nd2 {[%clk 0:02:05.6]} 15... Qb5+ {[%clk 0:01:37.5]} 16. Qc4
{[%clk 0:02:03.3]} 16... Qc6 {[%clk 0:01:34.2]} 17. Rhd1 {[%clk 0:01:55.1]}
17... Qxg2 {[%clk 0:01:30.8]} 18. Nf3 {[%clk 0:01:49.4]} 18... O-O {[%clk
0:01:26.4]} 19. Qh4 {[%clk 0:01:36.9]} 19... f6 {[%clk 0:00:46.9]} 20. Bh6
{[%clk 0:01:15.6]} 20... Ne5 {[%clk 0:00:30.8]} 21. Ne1 {[%clk 0:00:24.3]} 21...
Qg6 {[%clk 0:00:25.9]} 22. Bf4 {[%clk 0:00:20.9]} 22... Rac8 {[%clk 0:00:17.7]}
23. Rac1 {[%clk 0:00:17.6]} 23... Ncd3 {[%clk 0:00:13]} 24. Rxc8 {[%clk
0:00:07.3]} 24... Rxc8 {[%clk 0:00:07.9]} 25. Nxd3 {[%clk 0:00:06.4]} 25... Rc2+
{[%clk 0:00:07.7]} 0-1

[Event "Early-Titled-Tuesday-Blitz-July-09-2024"]
[Site "Chess.com"]
[Date "2024.07.09"]
[Round "10"]
[White "Barbix1"]
[Black "Chernov_Alexander_A"]
[Result "0-1"]
[WhiteElo "2358"]
[BlackElo "2289"]
[TimeControl "180+1"]
[EndTime "9:56:40 PDT"]
[Termination "Chernov_Alexander_A won by resignation"]

1. d4 {[%clk 0:03:00.9]} 1... Nf6 {[%clk 0:02:59.3]} 2. c4 {[%clk 0:03:00.6]}
2... e6 {[%clk 0:02:58.2]} 3. Nf3 {[%clk 0:02:59.9]} 3... b6 {[%clk 0:02:58.2]}
4. g3 {[%clk 0:02:59.2]} 4... Bb7 {[%clk 0:02:58.4]} 5. Bg2 {[%clk 0:02:59.3]}
5... Be7 {[%clk 0:02:57.6]} 6. O-O {[%clk 0:02:59.1]} 6... O-O {[%clk
0:02:57.6]} 7. d5 {[%clk 0:02:59]} 7... exd5 {[%clk 0:02:55.9]} 8. Nh4 {[%clk
0:02:59.3]} 8... c6 {[%clk 0:02:51.9]} 9. cxd5 {[%clk 0:02:33.2]} 9... Nxd5
{[%clk 0:02:51.5]} 10. Nf5 {[%clk 0:02:29.3]} 10... Bf6 {[%clk 0:02:51.3]} 11.
e4 {[%clk 0:02:04.9]} 11... Nc7 {[%clk 0:02:47.3]} 12. Nd6 {[%clk 0:02:01.9]}
12... Ba6 {[%clk 0:02:46.4]} 13. Re1 {[%clk 0:02:00.8]} 13... Ne8 {[%clk
0:02:46.3]} 14. e5 {[%clk 0:01:49.3]} 14... Nxd6 {[%clk 0:02:44.7]} 15. exd6
{[%clk 0:01:44.4]} 15... Bc4 {[%clk 0:02:35.4]} 16. Nd2 {[%clk 0:00:54.2]} 16...
Be6 {[%clk 0:02:16.7]} 17. Ne4 {[%clk 0:00:49.7]} 17... a5 {[%clk 0:01:52.8]}
18. h4 {[%clk 0:00:12.8]} 18... h6 {[%clk 0:01:36.3]} 19. Be3 {[%clk 0:00:12.6]}
19... Na6 {[%clk 0:01:23.5]} 20. Nxf6+ {[%clk 0:00:08.9]} 20... Qxf6 {[%clk
0:01:22.2]} 21. Bxb6 {[%clk 0:00:05.9]} 21... Qxb2 {[%clk 0:01:17.4]} 22. Bd4
{[%clk 0:00:06.1]} 22... Qb5 {[%clk 0:01:00.6]} 23. Qd2 {[%clk 0:00:03.2]} 23...
Nb4 {[%clk 0:00:55.1]} 24. Rad1 {[%clk 0:00:02.4]} 24... Qc4 {[%clk 0:00:48.5]}
25. Ba1 {[%clk 0:00:02.4]} 25... Qg4 {[%clk 0:00:37]} 26. Qb2 {[%clk 0:00:02.3]}
26... f6 {[%clk 0:00:34.1]} 27. Re4 {[%clk 0:00:02.3]} 27... Qg6 {[%clk
0:00:30.1]} 28. Qe2 {[%clk 0:00:01.6]} 28... Bd5 {[%clk 0:00:27.5]} 29. Re7
{[%clk 0:00:01.3]} 29... Bxg2 {[%clk 0:00:23.5]} 30. Kxg2 {[%clk 0:00:02.2]}
30... Rf7 {[%clk 0:00:23.1]} 31. Re1 {[%clk 0:00:02.1]} 31... Raf8 {[%clk
0:00:22.7]} 32. Qe3 {[%clk 0:00:01.6]} 32... Nd5 {[%clk 0:00:22.7]} 33. Rxf7
{[%clk 0:00:01.6]} 33... Nxe3+ {[%clk 0:00:22.2]} 0-1

[Event "Early-Titled-Tuesday-Blitz-July-09-2024"]
[Site "Chess.com"]
[Date "2024.07.09"]
[Round "10"]
[White "ploxoi"]
[Black "Matols"]
[Result "0-1"]
[WhiteElo "2455"]
[BlackElo "2371"]
[TimeControl "180+1"]
[EndTime "9:56:43 PDT"]
[Termination "Matols won by resignation"]

1. c4 {[%clk 0:03:00.9]} 1... e6 {[%clk 0:02:58.9]} 2. Nf3 {[%clk 0:03:00.4]}
2... d5 {[%clk 0:02:59.2]} 3. g3 {[%clk 0:03:00.3]} 3... Nf6 {[%clk 0:02:59.8]}
4. Bg2 {[%clk 0:03:00.7]} 4... Be7 {[%clk 0:03:00.4]} 5. O-O {[%clk 0:03:01.2]}
5... O-O {[%clk 0:03:01.1]} 6. d4 {[%clk 0:03:01.9]} 6... dxc4 {[%clk
0:02:59.8]} 7. Qc2 {[%clk 0:03:02]} 7... a6 {[%clk 0:03:00.3]} 8. a4 {[%clk
0:03:02.4]} 8... Bd7 {[%clk 0:02:59.3]} 9. Rd1 {[%clk 0:03:02.9]} 9... Bc6
{[%clk 0:02:59.1]} 10. Nc3 {[%clk 0:03:03.6]} 10... a5 {[%clk 0:02:58.3]} 11. e4
{[%clk 0:03:03.5]} 11... Na6 {[%clk 0:02:54.6]} 12. d5 {[%clk 0:02:55.2]} 12...
exd5 {[%clk 0:02:47.3]} 13. e5 {[%clk 0:02:54.9]} 13... Nb4 {[%clk 0:02:40.6]}
14. Qe2 {[%clk 0:02:54.8]} 14... Nd7 {[%clk 0:02:31]} 15. e6 {[%clk 0:02:53.7]}
15... fxe6 {[%clk 0:02:29.4]} 16. Qxe6+ {[%clk 0:02:54.6]} 16... Kh8 {[%clk
0:02:29.3]} 17. Nd4 {[%clk 0:02:54.3]} 17... Nc5 {[%clk 0:02:27.1]} 18. Nxc6
{[%clk 0:02:51.4]} 18... Nxe6 {[%clk 0:02:21.3]} 19. Nxd8 {[%clk 0:02:51.3]}
19... Raxd8 {[%clk 0:02:21.9]} 20. Nxd5 {[%clk 0:02:49.7]} 20... Nxd5 {[%clk
0:02:11.7]} 21. Rxd5 {[%clk 0:02:50.6]} 21... Rxd5 {[%clk 0:01:58.3]} 22. Bxd5
{[%clk 0:02:51.5]} 22... Nd4 {[%clk 0:01:58.9]} 23. Bxc4 {[%clk 0:02:50.4]}
23... Nc2 {[%clk 0:01:52]} 24. Ra2 {[%clk 0:02:14.2]} 24... Bc5 {[%clk
0:01:46.5]} 25. Be3 {[%clk 0:02:02.2]} 25... Nxe3 {[%clk 0:01:37.8]} 26. fxe3
{[%clk 0:02:03.1]} 26... Bxe3+ {[%clk 0:01:38.1]} 27. Kg2 {[%clk 0:02:02.3]}
27... Rf2+ {[%clk 0:01:36.8]} 28. Kh3 {[%clk 0:02:01]} 28... g5 {[%clk
0:01:20.4]} 29. Bd5 {[%clk 0:01:43.7]} 29... c6 {[%clk 0:01:17.5]} 30. Be6
{[%clk 0:01:17]} 30... h5 {[%clk 0:01:16.1]} 31. g4 {[%clk 0:01:17.5]} 31... h4
{[%clk 0:01:13.3]} 32. Ra1 {[%clk 0:01:11.1]} 32... Bf4 {[%clk 0:01:09.7]} 33.
Rh1 {[%clk 0:01:11.5]} 33... Rxb2 {[%clk 0:01:09]} 34. Bf5 {[%clk 0:01:12]}
34... Kg7 {[%clk 0:01:08.1]} 35. Be4 {[%clk 0:01:11.6]} 35... Kf6 {[%clk
0:01:07.3]} 36. Bf3 {[%clk 0:01:02.3]} 36... Ke5 {[%clk 0:00:57.9]} 37. Re1+
{[%clk 0:01:01.5]} 37... Kd4 {[%clk 0:00:56.6]} 38. Be2 {[%clk 0:00:59.6]} 38...
b5 {[%clk 0:00:45]} 39. axb5 {[%clk 0:00:55.4]} 39... cxb5 {[%clk 0:00:45.9]}
40. Kg2 {[%clk 0:00:55.5]} 40... a4 {[%clk 0:00:39.8]} 41. Kf1 {[%clk
0:00:50.4]} 41... a3 {[%clk 0:00:37.9]} 42. Rd1+ {[%clk 0:00:50.1]} 42... Ke5
{[%clk 0:00:35.1]} 43. Ra1 {[%clk 0:00:20.5]} 43... a2 {[%clk 0:00:32.6]} 44. h3
{[%clk 0:00:20.8]} 44... Rb1+ {[%clk 0:00:31.5]} 0-1

[Event "Early-Titled-Tuesday-Blitz-July-09-2024"]
[Site "Chess.com"]
[Date "2024.07.09"]
[Round "10"]
[White "anderson2361"]
[Black "Dreamer_01"]
[Result "0-1"]
[WhiteElo "2226"]
[BlackElo "2453"]
[TimeControl "180+1"]
[EndTime "9:56:44 PDT"]
[Termination "Dreamer_01 won by checkmate"]

1. c4 {[%clk 0:03:00.9]} 1... Nf6 {[%clk 0:02:56.9]} 2. Nf3 {[%clk 0:02:59]}
2... e6 {[%clk 0:02:56.4]} 3. g3 {[%clk 0:02:58.6]} 3... d5 {[%clk 0:02:56.8]}
4. Bg2 {[%clk 0:02:59]} 4... dxc4 {[%clk 0:02:56.7]} 5. Qa4+ {[%clk 0:02:57.2]}
5... Bd7 {[%clk 0:02:56.9]} 6. Qxc4 {[%clk 0:02:57.5]} 6... Bc6 {[%clk
0:02:57.4]} 7. O-O {[%clk 0:02:57.5]} 7... Nbd7 {[%clk 0:02:57.5]} 8. d3 {[%clk
0:02:56.8]} 8... Bd6 {[%clk 0:02:54]} 9. Qc2 {[%clk 0:02:56]} 9... O-O {[%clk
0:02:53.1]} 10. Nc3 {[%clk 0:02:56.4]} 10... Qe7 {[%clk 0:02:35.9]} 11. e4
{[%clk 0:02:54.3]} 11... e5 {[%clk 0:02:28.5]} 12. a3 {[%clk 0:02:52.1]} 12...
Nc5 {[%clk 0:02:23]} 13. b4 {[%clk 0:02:48.7]} 13... Ne6 {[%clk 0:02:23.3]} 14.
Bb2 {[%clk 0:02:43.5]} 14... a6 {[%clk 0:02:17.9]} 15. Rad1 {[%clk 0:02:35.1]}
15... Rad8 {[%clk 0:02:16.4]} 16. Rfe1 {[%clk 0:02:26.3]} 16... Rfe8 {[%clk
0:02:05.3]} 17. Nb1 {[%clk 0:02:20.2]} 17... Qd7 {[%clk 0:01:47.3]} 18. Rc1
{[%clk 0:02:14.8]} 18... Nf8 {[%clk 0:01:35.5]} 19. Nbd2 {[%clk 0:02:13.5]}
19... Ng6 {[%clk 0:01:30.5]} 20. Nc4 {[%clk 0:02:12.1]} 20... Ba4 {[%clk
0:01:20.7]} 21. Qc3 {[%clk 0:02:07.8]} 21... Rc8 {[%clk 0:00:59.5]} 22. d4
{[%clk 0:01:48.5]} 22... exd4 {[%clk 0:00:54.2]} 23. Nxd4 {[%clk 0:01:49.4]}
23... Bf8 {[%clk 0:00:47.4]} 24. Nf5 {[%clk 0:01:36.8]} 24... Nxe4 {[%clk
0:00:44.8]} 25. Bxe4 {[%clk 0:01:34.8]} 25... Rxe4 {[%clk 0:00:44.9]} 26. Rxe4
{[%clk 0:01:24.9]} 26... Qxf5 {[%clk 0:00:45.1]} 27. Re3 {[%clk 0:01:17.9]}
27... Bc6 {[%clk 0:00:36.2]} 28. Ne5 {[%clk 0:01:04.8]} 28... Nxe5 {[%clk
0:00:35.8]} 29. Qxe5 {[%clk 0:01:04.6]} 29... Qh3 {[%clk 0:00:33.6]} 30. f3
{[%clk 0:00:58.7]} 30... Rd8 {[%clk 0:00:31.1]} 31. Qc3 {[%clk 0:00:46.8]} 31...
f6 {[%clk 0:00:23.5]} 32. Rd3 {[%clk 0:00:43.9]} 32... Bd6 {[%clk 0:00:23.5]}
33. Qc4+ {[%clk 0:00:42.7]} 33... Kh8 {[%clk 0:00:22.2]} 34. Rcd1 {[%clk
0:00:35.1]} 34... Re8 {[%clk 0:00:20.9]} 35. Qf7 {[%clk 0:00:34.2]} 35... Re2
{[%clk 0:00:16.3]} 36. Bxf6 {[%clk 0:00:07.8]} 36... Qg2# {[%clk 0:00:16.2]} 0-1

[Event "Early-Titled-Tuesday-Blitz-July-09-2024"]
[Site "Chess.com"]
[Date "2024.07.09"]
[Round "10"]
[White "CristhianPortalR"]
[Black "kyawmyataung2005"]
[Result "0-1"]
[WhiteElo "2486"]
[BlackElo "2342"]
[TimeControl "180+1"]
[EndTime "9:56:49 PDT"]
[Termination "kyawmyataung2005 won by resignation"]

1. e4 {[%clk 0:03:00.9]} 1... e5 {[%clk 0:02:49.8]} 2. Nf3 {[%clk 0:02:58.6]}
2... Nc6 {[%clk 0:02:47.3]} 3. d4 {[%clk 0:02:57.4]} 3... exd4 {[%clk
0:02:46.4]} 4. Nxd4 {[%clk 0:02:58.3]} 4... Bc5 {[%clk 0:02:45.7]} 5. Nb3 {[%clk
0:02:57.6]} 5... Bb6 {[%clk 0:02:45.7]} 6. Nc3 {[%clk 0:02:54.7]} 6... Nf6
{[%clk 0:02:45.4]} 7. Qe2 {[%clk 0:02:55.3]} 7... Qe7 {[%clk 0:02:44.5]} 8. Bg5
{[%clk 0:02:52.8]} 8... Nd4 {[%clk 0:02:39.5]} 9. Nxd4 {[%clk 0:02:32.8]} 9...
Bxd4 {[%clk 0:02:39]} 10. Nd5 {[%clk 0:02:33.5]} 10... Qc5 {[%clk 0:02:30.3]}
11. Bxf6 {[%clk 0:02:10.1]} 11... Bxf6 {[%clk 0:02:21.2]} 12. Nxf6+ {[%clk
0:02:08.9]} 12... gxf6 {[%clk 0:02:22.1]} 13. O-O-O {[%clk 0:02:08.7]} 13... d6
{[%clk 0:02:14.1]} 14. Rd5 {[%clk 0:02:08.3]} 14... Qc6 {[%clk 0:02:09.5]} 15.
Qf3 {[%clk 0:02:07.1]} 15... Ke7 {[%clk 0:02:09.2]} 16. Bb5 {[%clk 0:01:51.2]}
16... Qb6 {[%clk 0:02:08.2]} 17. Rh5 {[%clk 0:01:50.4]} 17... Be6 {[%clk
0:01:47.9]} 18. Rd1 {[%clk 0:01:43.8]} 18... Rag8 {[%clk 0:01:45.8]} 19. Ba4
{[%clk 0:01:28.4]} 19... Bg4 {[%clk 0:01:35.5]} 20. Qf4 {[%clk 0:00:31.7]} 20...
Bxh5 {[%clk 0:01:28.8]} 21. e5 {[%clk 0:00:31.8]} 21... fxe5 {[%clk 0:01:02.4]}
22. Qh4+ {[%clk 0:00:31.2]} 22... f6 {[%clk 0:00:55.6]} 23. Qxh5 {[%clk
0:00:29.1]} 23... Qxf2 {[%clk 0:00:54.1]} 24. Qh3 {[%clk 0:00:28.7]} 24... c6
{[%clk 0:00:52.4]} 25. Bb3 {[%clk 0:00:26.8]} 25... d5 {[%clk 0:00:52.1]} 26.
Qc3 {[%clk 0:00:20.3]} 26... Qb6 {[%clk 0:00:37.1]} 27. Qf3 {[%clk 0:00:18.5]}
27... Rg5 {[%clk 0:00:31.3]} 28. Rf1 {[%clk 0:00:16.7]} 28... Rf8 {[%clk
0:00:28]} 29. h4 {[%clk 0:00:16]} 29... Rg6 {[%clk 0:00:26.8]} 30. g4 {[%clk
0:00:14.8]} 30... Qd4 {[%clk 0:00:25.9]} 31. g5 {[%clk 0:00:13.8]} 31... Qxh4
{[%clk 0:00:21.7]} 32. Qe3 {[%clk 0:00:09.7]} 32... Qxg5 {[%clk 0:00:21.1]} 0-1

[Event "Early-Titled-Tuesday-Blitz-July-09-2024"]
[Site "Chess.com"]
[Date "2024.07.09"]
[Round "10"]
[White "AmbartsumianTyhran2012"]
[Black "chessdjw"]
[Result "0-1"]
[WhiteElo "2558"]
[BlackElo "2750"]
[TimeControl "180+1"]
[EndTime "9:56:50 PDT"]
[Termination "chessdjw won on time"]

1. e4 {[%clk 0:03:00.9]} 1... e5 {[%clk 0:03:00.5]} 2. Nf3 {[%clk 0:02:57.6]}
2... Nc6 {[%clk 0:03:01.1]} 3. d4 {[%clk 0:02:54.8]} 3... exd4 {[%clk
0:03:00.5]} 4. Nxd4 {[%clk 0:02:53.9]} 4... Nf6 {[%clk 0:03:00]} 5. Nxc6 {[%clk
0:02:53.1]} 5... bxc6 {[%clk 0:03:00]} 6. Bd3 {[%clk 0:02:52.7]} 6... d5 {[%clk
0:02:56.1]} 7. exd5 {[%clk 0:02:52]} 7... cxd5 {[%clk 0:02:56.5]} 8. O-O {[%clk
0:02:50.6]} 8... Be7 {[%clk 0:02:56.4]} 9. c4 {[%clk 0:02:49.8]} 9... d4 {[%clk
0:02:52.5]} 10. Nd2 {[%clk 0:02:48]} 10... O-O {[%clk 0:02:48.1]} 11. Ne4 {[%clk
0:02:42.7]} 11... Bb7 {[%clk 0:02:48.3]} 12. Nxf6+ {[%clk 0:02:36.8]} 12... Bxf6
{[%clk 0:02:47.5]} 13. Bf4 {[%clk 0:02:37.1]} 13... g6 {[%clk 0:02:40.2]} 14. b4
{[%clk 0:02:31.1]} 14... Re8 {[%clk 0:02:37.5]} 15. Qc2 {[%clk 0:02:21.5]} 15...
Qd7 {[%clk 0:02:32.7]} 16. a4 {[%clk 0:02:12.3]} 16... h5 {[%clk 0:02:30.2]} 17.
h3 {[%clk 0:01:57.8]} 17... Qc6 {[%clk 0:02:07.2]} 18. f3 {[%clk 0:01:53.5]}
18... Qd7 {[%clk 0:01:57.6]} 19. b5 {[%clk 0:01:45.5]} 19... Be5 {[%clk
0:01:54]} 20. Bh6 {[%clk 0:01:30.1]} 20... Kh7 {[%clk 0:01:44.9]} 21. Bg5 {[%clk
0:01:26.4]} 21... c5 {[%clk 0:01:32.4]} 22. Qf2 {[%clk 0:01:15.9]} 22... Qd6
{[%clk 0:01:26.6]} 23. Qh4 {[%clk 0:01:11]} 23... Kg7 {[%clk 0:01:20.9]} 24. f4
{[%clk 0:00:45.2]} 24... Bf6 {[%clk 0:01:20.7]} 25. f5 {[%clk 0:00:40.7]} 25...
Bxg5 {[%clk 0:01:09.7]} 26. Qxg5 {[%clk 0:00:41.6]} 26... Re3 {[%clk 0:00:50.7]}
27. f6+ {[%clk 0:00:29.4]} 27... Kg8 {[%clk 0:00:50.7]} 28. Bxg6 {[%clk
0:00:10.3]} 28... Rg3 {[%clk 0:00:49.7]} 29. Bxf7+ {[%clk 0:00:09.9]} 29... Kxf7
{[%clk 0:00:28.9]} 30. Qxh5+ {[%clk 0:00:10]} 30... Kg8 {[%clk 0:00:23.3]} 31.
Ra2 {[%clk 0:00:04.4]} 31... Rf8 {[%clk 0:00:20.1]} 32. f7+ {[%clk 0:00:04.9]}
32... Kg7 {[%clk 0:00:19.7]} 33. Raf2 {[%clk 0:00:05.4]} 33... Be4 {[%clk
0:00:13.3]} 34. Qh4 {[%clk 0:00:03.9]} 34... Qg6 {[%clk 0:00:12.6]} 0-1